Cogmind - Beta 13 @@@ ROGUE MODE // 2024.04.02 @ 17:03:38 Player: aRandomVoice Result: Destroyed by G-47 Trooper with Particle Gun Performance ------------- Evolutions (3) 1500 Regions Visited (7) 1400 Robots Destroyed (80) 400 Value Destroyed (2377) 2377 Prototype IDs (0) 0 Alien Tech Used (0) 0 Bonus (878) 878 TOTAL SCORE: 6555 Bonus ------- High Alert Combat Kills 378 Entered DSFs 500 Cogmind --------- Core Integrity 0/700 Matter 216/300 Energy 100/100 System Corruption 0% Temperature Cool (9) Movement Core (50) Location -7/DSF Parts ------- > --- POWER (3) -------- (None) > --- PROPULSION (3) --- (None) > --- UTILITY (5) ------ Advanced Visual Processing Unit Target Analyzer > --- WEAPON (2) ------- (None) > --- INVENTORY (5) ---- (None) Peak State ------------ > --- POWER ------------ Deuterium Engine Nuclear Core Light Nuclear Core > --- PROPULSION ------- Aluminum Leg Aluminum Leg Improved Carbon-fiber Leg > --- UTILITY ---------- Improved Heat Sink Improved Heat Sink Advanced Visual Processing Unit Target Analyzer > --- WEAPON ----------- Lightning Gun Gauss Rifle > --- INVENTORY -------- Improved Ion Engine EM Pulse Gun Lightning Gun Field Laser Plasma Cannon [Rating: 36] Favorites ----------- Power Light Nuclear Core Engine Light Ion Engine Power Core Light Nuclear Core Propulsion Aluminum Leg Leg Aluminum Leg Wheel Wheel Hover Unit Hover Unit Flight Unit VTOL Module Utility Advanced Visual Processing Unit Device Improved Heat Sink Processor Advanced Visual Processing Unit Protection Medium Armor Plating Weapon Particle Gun Energy Gun Particle Gun Energy Cannon Particle Cannon Ballistic Gun Gauss Rifle Launcher Rocket Launcher Build | -11 -10 -10 -9 -9 -8 -7 -7 ------- Run | Yrd Mat Min Mat Min Mat Fac DSF Slots Evolved 6 | . . . 2 . 2 2 . Power 2 | . . . . . 1 1 . Propulsion 1 | . . . . . 1 . . Utility 3 | . . . 2 . . 1 . Weapon . | . . . . . . . . Parts Attached 107 | 5 5 1 31 8 47 3 7 Power 26 | 1 . . 6 2 12 1 4 Engine 14 | 1 . . 5 2 4 1 1 Core 12 | . . . 1 . 8 . 3 Reactor . | . . . . . . . . Propulsion 28 | 2 2 . 6 2 16 . . Treads . | . . . . . . . . Leg 12 | . . . . 2 10 . . Wheel 4 | 2 . . . . 2 . . Hover 4 | . . . 4 . . . . Flight 8 | . 2 . 2 . 4 . . Utility 24 | . 3 . 9 2 10 . . Device 14 | . 1 . 4 2 7 . . Storage . | . . . . . . . . Processor 7 | . . . 4 . 3 . . Hackware . | . . . . . . . . Protection 3 | . 2 . 1 . . . . Artifact . | . . . . . . . . Weapon 29 | 2 . 1 10 2 9 2 3 Energy Gun 21 | 1 . . 8 2 7 1 2 Energy Cannon 2 | . . . . . 1 . 1 Ballistic Gun 3 | 1 . . . . 1 1 . Ballistic Cannon . | . . . . . . . . Launcher 3 | . . 1 2 . . . . Special Weapon . | . . . . . . . . Impact Weapon . | . . . . . . . . Slashing Weapon . | . . . . . . . . Piercing Weapon . | . . . . . . . . Special Melee Weapon . | . . . . . . . . Unidentified Prototypes . | . . . . . . . . Parts Lost 36 | . . . 8 . 14 . 14 Power 10 | . . . 1 . 5 . 4 Propulsion 11 | . . . 3 . 5 . 3 Utility 8 | . . . 3 . 3 . 2 Weapon 7 | . . . 1 . 1 . 5 Highest Loss Streak 14 | . . . 4 . 4 . 14 To Critical Strikes . | . . . . . . . . Average Slot Usage (%) 89 | . 87 100 87 99 89 92 63 Engine 7 | . 14 14 6 10 6 7 4 Core 6 | . . . 3 . 9 15 9 Leg 9 | . . . . 1 17 23 14 Wheel 1 | . 21 . . . . . . Hover 2 | . . . 5 20 . . . Flight 7 | . 6 28 13 . 3 . . Device 13 | . 4 14 15 31 12 15 8 Processor 16 | . . . 19 11 21 15 15 Protection 2 | . 12 14 2 1 . . . Energy Gun 14 | . 14 14 17 22 14 7 3 Ballistic Gun 3 | . 14 7 . . 3 7 3 Launcher 1 | . . 6 3 . . . . Naked Turns . | . . . . . . . . Heaviest Build 31 | 8 16 18 18 22 26 31 31 Greatest Support 46 | 26 26 8 14 30 46 38 38 Greatest Overweight (x) 4 | . 2 2 3 1 2 . 4 Average Overweight (x) . | . . 1 . . . . . Largest Inventory Capacity 5 | 5 5 5 5 5 5 5 5 Average Capacity 5 | 5 5 5 5 5 5 5 5 Most Carried 5 | 5 5 5 5 5 5 5 5 Average Carried 3 | . 3 5 3 3 3 4 2 Final Capacity 5 | 5 5 5 5 5 5 5 5 Final Carried 5 | . 5 5 3 4 5 4 . Class Distribution -------------------- 56% | Scavenger-Mutant 39% | Mutant 3% | Scavenger-Sprinter Dominant Class ---------------- Mutant | -10/Materials Mutant | -10/Mines Mutant | -9/Materials Scavenger-Mutant | -9/Mines Scavenger-Mutant | -8/Materials Scavenger-Mutant | -7/Factory Scavenger-Mutant | -7/DSF Resources | -11 -10 -10 -9 -9 -8 -7 -7 ----------- Run | Yrd Mat Min Mat Min Mat Fac DSF Matter Collected 1475 | 235 112 . 296 167 654 . 11 Remotely . | . . . . . . . . Salvage Created 2752 | . 213 . 566 128 1845 . . Parts 163 | . 15 . 37 10 101 . . Haulers Intercepted . | . . . . . . . . Recyclers Shooed 1 | . . . . 1 . . . Parts Field Recycled . | . . . . . . . . Retrieved Matter . | . . . . . . . . Parts Self-Destructed . | . . . . . . . . Prevented . | . . . . . . . . Kills | -11 -10 -10 -9 -9 -8 -7 -7 ------- Run | Yrd Mat Min Mat Min Mat Fac DSF Combat Hostiles Destroyed 64 | . 4 . 18 4 38 . . Guns 56 | . 4 . 15 4 33 . . AOE 7 | . . . 3 . 4 . . Classes Destroyed 9 | . 2 . 3 1 3 . . Worker 2 | . . . 1 . 1 . . Builder 3 | . . . . . 3 . . Recycler 2 | . . . . 1 1 . . Watcher 9 | . 1 . 4 . 4 . . Swarmer 23 | . . . 8 4 11 . . Grunt 29 | . 4 . 7 . 18 . . Brawler 1 | . . . . . 1 . . Sentry 7 | . . . 3 . 4 . . Specialist 4 | . . . . . 4 . . Best Kill Streak 12 | . 2 . 7 4 12 . . Combat Bots Only 7 | . 2 . 5 4 7 . . Max Kills in Single Turn 3 | . 1 . 3 1 2 . . Gunslinging 1 | . . . . . 1 . . Exploded 2 | . . . 2 . 1 . . Melee . | . . . . . . . . Uniques/NPCs Destroyed . | . . . . . . . . Combat | -11 -10 -10 -9 -9 -8 -7 -7 -------- Run | Yrd Mat Min Mat Min Mat Fac DSF Hostile Shots Fired 533 | . 21 . 137 19 268 . 88 Missed 179 | . 6 . 49 4 89 . 31 Damage Taken 5231 | . 201 3 879 138 2402 . 1608 Core 1433 | . 22 . 197 31 480 . 703 Absorbed by Shields 66 | . . . 66 . . . . Core Remaining (%) 61 | 100 . 91 . 43 12 . . Volleys Fired 252 | . 25 . 65 13 127 . 22 Largest 2 | . 2 . 2 2 2 . 2 Hottest 140 | . 60 . 130 105 140 . 135 Shots Fired 440 | . 47 . 98 26 244 . 25 Gun 413 | . 47 . 91 26 237 . 12 Cannon 20 | . . . . . 7 . 13 Launcher 7 | . . . 7 . . . . Special . | . . . . . . . . Kinetic 75 | . 25 . . . 41 . 9 Thermal 325 | . 22 . 91 26 173 . 13 Explosive 7 | . . . 7 . . . . Electromagnetic 33 | . . . . . 30 . 3 Robot Hit Streak 14 | . 7 . 10 7 14 . 8 Robot Miss Streak 8 | . 5 . 8 2 5 . 2 Penetration Max . | . . . . . . . . Secondary Targets 8 | . 1 . . . 7 . . Max Gunslinging Chain 1 | . 1 . . . 1 . . Shots Hit Robots 281 | . 25 . 58 18 163 . 17 Core Hits 139 | . 14 . 33 8 82 . 2 Critical Kills . | . . . . . . . . Critical Parts Destroyed 1 | . . . . . 1 . . Critical Strikes 24 | . . . . 1 23 . . Burn 19 | . . . . 1 18 . . Destroy 2 | . . . . . 2 . . Corrupt 3 | . . . . . 3 . . Melee Attacks . | . . . . . . . . Impact . | . . . . . . . . Slashing . | . . . . . . . . Piercing . | . . . . . . . . Sneak Attacks . | . . . . . . . . Combat Hostiles . | . . . . . . . . Follow-up Attacks . | . . . . . . . . Damage Inflicted 5295 | . 319 7 1177 237 3143 . 412 Guns 4284 | . 319 . 797 237 2779 . 152 Cannons 348 | . . . . . 88 . 260 Explosions 656 | . . . 380 . 276 . . Melee . | . . . . . . . . Ramming 7 | . . 7 . . . . . Kinetic 882 | . 182 . . . 577 . 123 Thermal 3540 | . 137 . 797 237 2109 . 260 Explosive 380 | . . . 380 . . . . Electromagnetic 486 | . . . . . 457 . 29 Impact . | . . . . . . . . Slashing . | . . . . . . . . Piercing . | . . . . . . . . Highest Corruption 2 | . . . 2 2 2 . . Average Corruption 1 | . . . 2 2 1 . . Corruption Purged . | . . . . . . . . Corruption Blocked . | . . . . . . . . Effects 8 | . . . 7 1 . . . Message Errors 3 | . . . 2 1 . . . Matter Fused 1 | . . . 1 . . . . Heat Flow Errors 1 | . . . 1 . . . . Data Loss (minor) 2 | . . . 2 . . . . Weapon Failures 1 | . . . 1 . . . . Overload Shots . | . . . . . . . . Overflow Damage 24 | . . . 12 . 12 . . Projectiles . | . . . . . . . . Explosions 24 | . . . 12 . 12 . . Melee . | . . . . . . . . Knockbacks . | . . . . . . . . Impact . | . . . . . . . . Kinetic . | . . . . . . . . Secondary . | . . . . . . . . Self-Inflicted Damage 25 | . . 3 22 . . . . Shots 1 | . . . 1 . . . . Rammed 1 | . . 1 . . . . . Targets Rammed 1 | . . 1 . . . . . Kicked . | . . . . . . . . Crushed . | . . . . . . . . Highest Temperature 557 | . 69 . 557 12 479 . 1 Average Temperature 137 | . 35 . 160 7 143 . 1 Received Heat Transfer 1572 | . 117 . 192 30 1134 . 99 Effects 28 | . . . 16 . 12 . . Shutdowns 8 | . . . 3 . 5 . . Interference 6 | . . . 3 . 3 . . Matter Decay 3 | . . . 1 . 2 . . Short Circuit 2 | . . . 1 . 1 . . Damage (minor) 2 | . . . 1 . 1 . . Damage (major) 7 | . . . 7 . . . . Siege Activations . | . . . . . . . . Robots Corrupted . | . . . . . . . . Combat Hostiles . | . . . . . . . . Parts Fried . | . . . . . . . . Impact Corruptions . | . . . . . . . . Robots Melted 1 | . . . . . 1 . . Combat Hostiles 1 | . . . . . 1 . . Parts Melted 20 | . . . 4 . 16 . . Heat Transferred 8798 | . 325 . 1905 644 5424 . 500 Parts Sabotaged . | . . . . . . . . Parts Stolen . | . . . . . . . . Parts Stripped . | . . . . . . . . Power Chain Reactions 5 | . . . . . 5 . . Alert | -11 -10 -10 -9 -9 -8 -7 -7 ------- Run | Yrd Mat Min Mat Min Mat Fac DSF Peak Influence 824 | . 138 53 466 274 824 374 261 Initial 374 | . . 53 20 168 106 374 261 Average 347 | . 78 53 286 195 508 374 205 Maximum Alert Level 3 | . . . 2 1 3 1 1 Low Security (%) 33 | 100 100 100 28 73 10 . 40 Level 1 23 | . . . 44 26 9 100 59 Level 2 38 | . . . 26 . 69 . . Level 3 4 | . . . . . 9 . . Level 4 . | . . . . . . . . Level 5 . | . . . . . . . . High Security . | . . . . . . . . Max Security . | . . . . . . . . Squads Dispatched 15 | . 1 . 3 . 8 1 2 Investigation 3 | . . . . . 2 1 . Extermination . | . . . . . . . . Reinforcement 11 | . 1 . 3 . 5 . 2 Assault . | . . . . . . . . Garrison 1 | . . . . . 1 . . Intercept . | . . . . . . . . Searches Triggered . | . . . . . . . . Construction Impeded 1 | . . . . . 1 . . Haulers Reinforced . | . . . . . . . . Active Scanning Responses . | . . . . . . . . Cargo Convoy Interrupts . | . . . . . . . . Stealth | -11 -10 -10 -9 -9 -8 -7 -7 --------- Run | Yrd Mat Min Mat Min Mat Fac DSF Distress Signals 5 | . . . 3 . 2 . . Communications Jammed . | . . . . . . . . Distress Signals . | . . . . . . . . Times Spotted 99 | . 8 . 26 9 49 . 7 Peak Tracking Total 7 | . 3 . 7 4 5 . 6 Tactical Retreats 3 | . . . 1 1 . . 1 Traps | -11 -10 -10 -9 -9 -8 -7 -7 ------- Run | Yrd Mat Min Mat Min Mat Fac DSF Traps Triggered 4 | . . . 1 . 3 . . Indirectly . | . . . . . . . . Trap Hack Attempts . | . . . . . . . . Triggered . | . . . . . . . . Disarmed . | . . . . . . . . Reprogrammed 1 | . . . . . 1 . . Reused 1 | . . . . . 1 . . Traps Extracted . | . . . . . . . . Installed . | . . . . . . . . Triggered 1 | . . . . . 1 . . Machines | -11 -10 -10 -9 -9 -8 -7 -7 ---------- Run | Yrd Mat Min Mat Min Mat Fac DSF Machines Disabled 9 | . . . 5 . 4 . . Max in Single Turn 1 | . . . 1 . 1 . . Garrison Access 1 | . . . . . 1 . . Machines Repaired . | . . . . . . . . Machines Dismantled . | . . . . . . . . Machines Sabotaged . | . . . . . . . . Overloaded Fab Kills . | . . . . . . . . Hacking | -11 -10 -10 -9 -9 -8 -7 -7 --------- Run | Yrd Mat Min Mat Min Mat Fac DSF Machines Accessed 11 | . . . 2 . 7 2 . Terminals 9 | . . . 2 . 5 2 . Fabricators . | . . . . . . . . Repair Stations . | . . . . . . . . Recycling Units 1 | . . . . . 1 . . Scanalyzers . | . . . . . . . . Garrison Access 1 | . . . . . 1 . . Total Hacks 27 | . . . 3 . 21 3 . Successful 10 | . . . 2 . 7 1 . Failed 17 | . . . 1 . 14 2 . Catastrophic 3 | . . . . . 3 . . Database Lockouts . | . . . . . . . . Manual . | . . . . . . . . Terminals 23 | . . . 3 . 17 3 . Fabricators . | . . . . . . . . Repair Stations . | . . . . . . . . Recycling Units 2 | . . . . . 2 . . Scanalyzers . | . . . . . . . . Garrison Access 2 | . . . . . 2 . . Terminal Hacks 7 | . . . 2 . 4 1 . Record 1 | . . . . . 1 . . Open DSF 1 | . . . . . . 1 . Alert Level 1 | . . . 1 . . . . Locate Traps 1 | . . . . . 1 . . Reprogram Traps 1 | . . . . . 1 . . Zone Layout 2 | . . . 1 . 1 . . Fabricator Hacks . | . . . . . . . . Repair Station Hacks . | . . . . . . . . Recycling Unit Hacks 2 | . . . . . 2 . . Report Inventory 1 | . . . . . 1 . . Retrieve Components 1 | . . . . . 1 . . Scanalyzer . | . . . . . . . . Garrison Access Hacks 1 | . . . . . 1 . . Seal Access 1 | . . . . . 1 . . Unauthorized Hacks . | . . . . . . . . Terminals . | . . . . . . . . Fabricators . | . . . . . . . . Repair Stations . | . . . . . . . . Recycling Units . | . . . . . . . . Scanalyzers . | . . . . . . . . Garrison Access . | . . . . . . . . Data Cores Recovered . | . . . . . . . . Used . | . . . . . . . . Hacking Detections 8 | . . . 1 . 5 2 . Full Trace Events 2 | . . . . . 1 1 . Feedback Events . | . . . . . . . . Feedback Blocked . | . . . . . . . . Robot Schematics Acquired . | . . . . . . . . Robots Built . | . . . . . . . . Authchips . | . . . . . . . . Time . | . . . . . . . . Total Robot Build Rating . | . . . . . . . . Part Schematics Acquired . | . . . . . . . . Parts Built . | . . . . . . . . Authchips . | . . . . . . . . Time . | . . . . . . . . Total Part Build Rating . | . . . . . . . . Parts Repaired . | . . . . . . . . Time . | . . . . . . . . Parts Recycled . | . . . . . . . . Recycled Matter . | . . . . . . . . Retrieved Matter . | . . . . . . . . Retrieved Components 2 | . . . . . 2 . . Parts Scanalyzed . | . . . . . . . . Part Schematics Acquired . | . . . . . . . . Parts Damaged . | . . . . . . . . Bothacking | -11 -10 -10 -9 -9 -8 -7 -7 ------------ Run | Yrd Mat Min Mat Min Mat Fac DSF Used RIF Installer . | . . . . . . . . Robots Hacked . | . . . . . . . . Non-combat . | . . . . . . . . Combat . | . . . . . . . . Robot Hacks Applied . | . . . . . . . . Relay Couplers Released . | . . . . . . . . Fabnet Peak Effective % . | . . . . . . . . Robots Rewired . | . . . . . . . . Allies Hacked . | . . . . . . . . Hacks Repelled . | . . . . . . . . Allies | -11 -10 -10 -9 -9 -8 -7 -7 -------- Run | Yrd Mat Min Mat Min Mat Fac DSF Total Allies 1 | . . . . 1 . . . Largest Group 1 | . . . . 1 . . . Highest-Rated Group 31 | . . . . 31 . . . Highest-Rated Ally 31 | . . . . 31 . . . Total Orders . | . . . . . . . . Ally Attacks . | . . . . . . . . Total Damage . | . . . . . . . . Kills . | . . . . . . . . Allies Corrupted . | . . . . . . . . Allies Melted . | . . . . . . . . Intel | -11 -10 -10 -9 -9 -8 -7 -7 ------- Run | Yrd Mat Min Mat Min Mat Fac DSF Robot Analysis Total . | . . . . . . . . Derelict Logs Recovered . | . . . . . . . . Drone Launches . | . . . . . . . . Drone Recoveries . | . . . . . . . . Exploration | -11 -10 -10 -9 -9 -8 -7 -7 ------------- Run | Yrd Mat Min Mat Min Mat Fac DSF Turns Passed 2607 | 41 216 167 626 142 1198 118 99 Spaces Moved 1569 | 40 133 115 408 81 665 93 34 Core 33 | 12 . . 4 . . . 17 Treads . | . . . . . . . . Legs 579 | . . . . 5 464 93 17 Wheels 166 | 28 104 . . . 34 . . Hover 197 | . . . 121 76 . . . Flight 594 | . 29 115 283 . 167 . . Fastest Speed 32 | 50 90 112 32 56 34 120 50 Average Speed 99 | 78 95 141 87 71 101 120 90 Slowest Speed 250 | 90 195 192 200 190 210 120 250 Overloaded Moves . | . . . . . . . . Propulsion Burnouts . | . . . . . . . . Robots Hopped 1 | . . . . . 1 . . Cave-ins Triggered . | . . . . . . . . Exploration Rate (%) 28 | 3 35 23 50 15 61 4 40 Regions Visited 7 Branch Regions 2 Pre-discovered Areas 1 | . . . . 1 . . . Known Exits Taken 1 | . . . . . . 1 . Unknown Exits Taken 6 | 1 1 1 1 1 1 . . Scrap Searched . | . . . . . . . . Spaces Dug . | . . . . . . . . Terrain Destroyed 88 | . . . 68 . 20 . . Melee . | . . . . . . . . Projectile . | . . . . . . . . AOE 88 | . . . 68 . 20 . . Terrain Rammed . | . . . . . . . . Walls Destroyed . | . . . . . . . . Machines Disabled . | . . . . . . . . Actions | -11 -10 -10 -9 -9 -8 -7 -7 --------- Run | Yrd Mat Min Mat Min Mat Fac DSF Total 2189 | 49 177 120 581 140 946 99 77 Wait 112 | . . 3 38 25 36 . 10 Move 1560 | 39 132 114 407 80 662 92 34 Hop 1 | . . . . . 1 . . Pick Up 89 | 5 11 . 22 6 41 2 2 Fast Attach 7 | . . 1 1 2 3 . . Attach 55 | 5 5 . 16 1 23 1 4 Detach 4 | . . . 3 . 1 . . Swap 45 | . . . 14 5 21 2 3 Drop 63 | . 4 1 15 8 31 2 2 Fire 252 | . 25 . 65 13 127 . 22 Melee . | . . . . . . . . Ram 1 | . . 1 . . . . . Kick . | . . . . . . . . Crush . | . . . . . . . . Escape Stasis . | . . . . . . . . Rewire . | . . . . . . . . Trap . | . . . . . . . . Miscellaneous . | . . . . . . . . Route ------- -11/Scrapyard -10/Materials (discovered 3 exits: *Mat / [*Min x2]) -10/Mines -9/Materials (discovered 2 exits: [*Min] / [*Sto]) -9/Mines -8/Materials -7/Factory -7/DSF History --------- Turn | Location | Event 10 | -11/Scrapyard | Discovered new exit (range 15) 42 | -11/Scrapyard | Entered Materials 114 | -10/Materials | Discovered new exit (range 16) 189 | -10/Materials | Discovered new exit (range 10) 235 | -10/Materials | Discovered new exit (range 14) 258 | -10/Materials | Entered Mines 310 | -10/Mines | Build established: Mutant 343 | -10/Mines | Received a Rocket Launcher from a helpful Derelict 406 | -10/Mines | Discovered new exit (range 10) 425 | -10/Mines | Entered Materials 425 | -9/Materials | Evolved 2 slots: Utility x2 797 | -9/Materials | Lost 4 parts (2n1u1w) 999 | -9/Materials | Discovered new exit (range 16) 1025 | -9/Materials | Discovered new exit (range 12) 1051 | -9/Materials | Entered Mines 1065 | -9/Mines | Core integrity fell below 50% 1071 | -9/Mines | Escorted by a lone wolf Derelict 1091 | -9/Mines | Learned location of Storage (-9) 1143 | -9/Mines | Discovered new exit (range 4) 1193 | -9/Mines | Entered Materials 1193 | -8/Materials | Evolved 2 slots: Power x1, Propulsion x1 1211 | -8/Materials | Build established: Scavenger-Mutant 1374 | -8/Materials | Destroyed 7 combat bots 1525 | -8/Materials | Lost 3 parts (1p1n1w) 1635 | -8/Materials | Lost 4 parts (1p2n1u) 1802 | -8/Materials | Garrison activated, responded to threat 1841 | -8/Materials | Core integrity fell below 50% 2262 | -8/Materials | Core integrity fell below 20% 2308 | -8/Materials | Destroyed 7 combat bots 2377 | -8/Materials | Discovered new exit (range 7) 2391 | -8/Materials | Entered Factory 2391 | -7/Factory | Evolved 2 slots: Power x1, Utility x1 2508 | -7/Factory | Identified exit to DSF 2509 | -7/Factory | Entered DSF 2540 | -7/DSF | Additional patrols routed to DSF 2583 | -7/DSF | Core integrity fell below 50% 2604 | -7/DSF | Core integrity fell below 20% 2608 | -7/DSF | Destroyed by G-47 Trooper with Particle Gun Last Messages --------------- 02553_ Critical hit (Blast). 02555_ Destroyed Dynamic Insulation System. 02555_ Slug penetrates H-61 Shepherd. 02556_ Lgt. Nuclear Core destroyed. 02556_ Gauss Rifle destroyed. 02567_ Imp. Carbon-fiber Leg destroyed. 02568_ Aluminum Leg destroyed. 02569_ Lgt. Nuclear Core destroyed. 02571_ Penetrated by Slug. 02576_ Aluminum Leg destroyed. 02576_ Lightning Gun destroyed. 02577_ Imp. Heat Sink destroyed. 02583_ Knocked back. 02584_ Acquired 8 matter. 02584_ Imp. Ion Engine destroyed. 02586_ Plasma Cannon destroyed. 02588_ H-61 Shepherd misfires. 02588_ Slug penetrates Earth. 02590_ EM Pulse Gun destroyed. 02602_ Matter Repository disabled. Map ----- +----------------------------------------------------+ | | | | | | | | | | | | | | | | | | | | | | | | | | | | | | | | | ????????????????????????????????????????????? | | ????????????????????????????????????????????? | | ??????????????????????###???????????????????? | | ??????????????????????# #????????????###????? | | ??????????????????????# ###??????????#""????? | | ?????????#????????????# # #??????????#"#????? | | ??????####"?????????###;;%###???????##"####?? | | ??????#"""""?######## %#########"""""#?? | | ??????#"""""##==# # xg # #**##"""""#?? | | ??????#"% @ x % % ""#?? | | ????""""" g g """"" | | ??????#"" ##==# ### ###***#**## ""### | | ???????#?????#==# #?" ;##***#**### ###?? | | ?????????????########!! ########?# #???? | | ????????????????????#!! #????????* *#??? | | ????????????????????#!! #????????* *#??? | | ????????????????????### "##???????## ##??? | | ??????????????????????* !!????????? *???? | | ?????????????????????** !!#???????? *???? | | ?????????????????????** !!#???????? *#??? | | ????????????????????### ###????????# ##??? | | ??????????????????????# #??????????# !???? | | ?????????????????????? H ??????????# !???? | | ?????????????????????? ?????????? ???? | | ?????????????????????? ?????????? ???? | | ?????????????????????? ?????????? ??? | | ?????????????????????? #?????????# !!??? | | ??????????????????????# #??????????? !!??? | | ??????????????????????????????????????###???? | | ????????????????????????????????????????????? | | ????????????????????????????????????????????? | | ????????????????????????????????????????????? | | ????????????????????????????????????????????? | | ????????????????????????????????????????????? | +----------------------------------------------------+ Best States ------------- Heat Dissipation 86 Energy Generation 32 Energy Capacity 475 Matter Stores 300 Matter Capacity 300 Sight Range 20 Terrain Scan Density 10 Additional Mass Support 6 Armor Coverage 225 Utility Shielding 33 Evasion (%) 63 Target Analysis 5 Particle Charging 15 Item Schematics ----------------- None Robot Schematics ------------------ None Fabricated ------------ Nothing Alien Tech Used ----------------- None Achievements -------------- None Challenges ------------ None Game ------ Seed ColdReflectiveDoomcannon Manual? 0 Play Time 01:00:12 Cumulative 5.7 hours Start 2024.04.02 @ 15:55:10 End 2024.04.02 @ 17:03:38 Sessions 1 Manual Loads 0 Difficulty Rogue Special Mode None Game No. 13 Rogue 7 Adventurer 6 Explorer 0 Win Type - Total 0 Types 0/0/0/0/0/0/0/0/0 Lore% 4 Gallery% 13 Achievement% 11 Wizard Run 0 Options --------- Layout 1 ASCII 0 Keyboard 0 Movement Mouse Keybinds 0 Fullscreen 2 Font 24/Smallcaps Map View 50x35 Zoom Use 0% Tactical HUD 1 Map Filters NONE Filters NONE Steam 1 RUN: 00289a1b-71d9-4790-aa2e-8e45b26c8f3a